fUST/lending_fUST_20250701
["ID","MTS","AMOUNT","RATE_DAILY","PERIOD"]
[368699490,1751308165083,-460.0,0.00019235,2]
[368699491,1751308165103,-460.0,0.00019235,2]
[368699492,1751308165123,-284.21168594,0.00019235,2]
[368699493,1751308165143,-500.0,0.00019235,2]
[368699494,1751308165164,-460.0,0.00019447,2]
[368699495,1751308165186,-460.0,0.00019447,2]
[368699496,1751308165206,-460.0,0.00019447,2]
[368699497,1751308165227,-460.0,0.00019447,2]
[368699498,1751308165247,-460.0,0.00019447,2]
[368699499,1751308165269,-500.0,0.00019504,2]
[368699500,1751308165289,-500.0,0.00019504,2]
[368699501,1751308165310,-163.06158414,0.00019504,2]
[368699502,1751308165332,-462.33637596,0.00019504,2]
[368699503,1751308165352,-152.50810978,0.00019504,2]
[368699504,1751308165373,-294.90525283,0.00019504,2]
[368699505,1751308165393,-239.52,0.00019504,2]
[368699506,1751308165414,-460.0,0.00019504,2]
[368699507,1751308165434,-492.0049056,0.00019505,2]
[368699508,1751308165454,-460.0,0.00019505,2]
[368699509,1751308165475,-460.0,0.00019505,2]
[368699510,1751308165498,-216.18,0.00019505,2]
[368699511,1751308165520,-460.0,0.00019505,2]
[368699512,1751308165540,-300.27,0.00019505,2]
[368699513,1751308165562,-456.86,0.00019505,2]
[368699514,1751308165588,-460.0,0.00019505,2]
[368699515,1751308165609,-230.31,0.00019505,2]
[368699516,1751308165632,-460.0,0.00019505,2]
[368699517,1751308165654,-486.69,0.00019505,2]
[368699518,1751308165678,-460.0,0.00019505,2]
[368699519,1751308165700,-460.0,0.00019505,2]
[368699520,1751308165720,-460.0,0.00019506,2]
[368699521,1751308165742,-176.1,0.00019506,2]
[368699522,1751308165763,-585.31936139,0.00019506,2]
[368699523,1751308165784,-460.0,0.00019506,2]
[368699524,1751308165805,-460.0,0.00019506,2]
[368699525,1751308165829,-460.0,0.00019506,2]
[368699526,1751308165852,-460.0,0.00019506,2]
[368699527,1751308165874,-265.62,0.00019506,2]
[368699528,1751308165896,-460.0,0.00019506,2]
[368699529,1751308165918,-250.96,0.00019506,2]
[368699530,1751308165939,-460.78063092,0.00019506,2]
[368699531,1751308165960,-460.0,0.00019506,2]
[368699532,1751308165981,-460.0,0.00019506,2]
[368699533,1751308166003,-460.0,0.00019506,2]
[368699534,1751308166023,-460.0,0.00019506,2]
[368699535,1751308166044,-500.0,0.00019507,2]
[368699536,1751308166065,-460.0,0.00019507,2]
[368699537,1751308166086,-460.0,0.00019507,2]
[368699538,1751308166106,-460.0,0.00019508,2]
[368699539,1751308166127,-174.7003,0.00019508,2]
[368699540,1751308166146,-460.0,0.00019508,2]
[368699541,1751308166169,-614.24,0.00019508,2]
[368699542,1751308166191,-460.0,0.00019508,2]
[368699543,1751308166212,-460.0,0.00019508,2]
[368699544,1751308166234,-460.0,0.00019508,2]
[368699545,1751308166255,-460.0,0.00019509,2]
[368699546,1751308166276,-316.71196474,0.00019509,2]
[368699547,1751308166298,-460.0,0.00019509,2]
[368699548,1751308166320,-460.0,0.00019509,2]
[368699549,1751308166341,-460.0,0.00019509,2]
[368699550,1751308166362,-460.0,0.00019509,2]
[368699551,1751308166383,-390.42,0.00019721,2]
[368699552,1751308166404,-460.0,0.00019721,2]
[368699553,1751308166424,-233.86255829,0.00019721,2]
[368699554,1751308166574,-460.0,0.00019721,2]
[368699555,1751308166603,-490.71279274,0.00019721,2]
[368699556,1751308166627,-460.0,0.00019778,2]
[368699557,1751308166648,-460.0,0.00019779,2]
[368699558,1751308166673,-460.0,0.00019779,2]
[368699559,1751308166695,-460.0,0.00019779,2]
[368699560,1751308166718,-460.0,0.00019779,2]
[368699561,1751308166740,-460.0,0.00019779,2]
[368699562,1751308166763,-486.69,0.00019779,2]
[368699563,1751308166785,-460.0,0.00019779,2]
[368699564,1751308166808,-338.70245777,0.00019779,2]
[368699565,1751308166831,-460.0,0.0001978,2]
[368699566,1751308166859,-53.11830622,0.0001978,2]
[368699567,1751308166976,-173.18790279,0.0001978,2]
[368699568,1751308168127,-233.69379099,0.0001978,2]
[368699569,1751308168149,-41.61932029,0.0001978,2]
[368699572,1751308230205,171.363377,0.00013699,2]
[368699778,1751308238192,-523.22,0.00018899,2]
[368699780,1751308238202,-460.0,0.00018899,2]
[368699782,1751308238211,-150.97685145,0.00019085,2]
[368699784,1751308238223,-149.02314855,0.00019085,2]
[368699786,1751308238233,-4650.97685145,0.00019086,2]
[368699787,1751308238247,-418.0000021,0.00019086,2]
[368699788,1751308238258,-267.09860424,0.00019086,2]
[368699791,1751308238304,-4663.92454221,0.00019086,2]
[368699793,1751308238313,-291.6,0.00019173,2]
[368699794,1751308238324,-460.0,0.0001923,2]
[368699795,1751308238334,-460.0,0.0001923,2]
[368699796,1751308238344,-160.13,0.00019231,2]
[368699797,1751308238354,-268.86,0.00019232,2]
[368699798,1751308238363,-460.0,0.00019232,2]
[368699799,1751308238373,-460.0,0.00019232,2]
[368699800,1751308238383,-460.0,0.00019232,2]
[368699801,1751308238392,-460.0,0.00019232,2]
[368699802,1751308238413,-164.08433468,0.00019232,2]
[368699803,1751308238425,-460.0,0.00019233,2]
[368699804,1751308238435,-460.0,0.00019233,2]
[368699805,1751308238446,-460.0,0.00019233,2]
[368699806,1751308238456,-534.24,0.00019234,2]
[368699807,1751308238466,-460.0,0.00019234,2]
[368699808,1751308238476,-460.0,0.00019234,2]
[368699809,1751308238486,-530.67951177,0.00019504,2]
[368699810,1751308238496,-460.0,0.00019504,2]
[368699811,1751308238505,-460.0,0.00019506,2]
[368699812,1751308238517,-599.98,0.00019506,2]
[368699813,1751308238528,-390.42,0.00019506,2]
[368699814,1751308238538,-460.0,0.00019507,2]
[368699815,1751308238548,-460.0,0.00019507,2]
[368699816,1751308238557,-534.24,0.00019508,2]
[368699817,1751308238569,-531.67,0.00019508,2]
[368699818,1751308238579,-460.0,0.00019508,2]
[368699819,1751308238590,-460.0,0.00019778,2]
[368699820,1751308238600,-418.38067971,0.0001978,2]
[368699821,1751308238610,-460.0,0.0001978,2]
[368699822,1751308238620,-582.52,0.0001978,2]
[368699823,1751308238630,-460.0,0.0001978,2]
[368699824,1751308238640,-460.0,0.0001978,2]
[368699825,1751308238651,-460.0,0.00019781,2]
[368699826,1751308238662,-460.0,0.00019781,2]
[368699827,1751308238671,-460.0,0.00019781,2]
[368699828,1751308238682,-461.85547651,0.00019782,2]
[368699829,1751308238692,-460.0,0.00019782,2]
[368699830,1751308238703,-614.24,0.00019782,2]
[368699831,1751308238713,-460.0,0.00019782,2]
[368699832,1751308238722,-460.0,0.00019782,2]
[368699833,1751308238732,-460.0,0.00019782,2]
[368699834,1751308238742,-534.24,0.00019782,2]
[368699835,1751308238752,-460.0,0.00019782,2]
[368699836,1751308238762,-460.0,0.00019783,2]
[368699837,1751308238771,-460.0,0.00019783,2]
[368699838,1751308238781,-460.0,0.00019783,2]
[368699839,1751308238790,-1152.8508024,0.000199,2]
[368699840,1751308238800,-500.0,0.0001996,2]
[368699841,1751308238810,-460.0,0.00019995,2]
[368699842,1751308238819,-500.0,0.00019995,2]
[368699843,1751308238829,-460.0,0.00019995,2]
[368699844,1751308238839,-460.0,0.00019997,2]
[368699845,1751308238848,-252.4981804,0.00020052,2]
[368699846,1751308238858,-460.0,0.00020052,2]
[368699847,1751308238868,-460.0,0.00020053,2]
[368699848,1751308238878,-460.0,0.00020053,2]
[368699849,1751308238887,-486.69,0.00020053,2]
[368699850,1751308238897,-460.0,0.00020053,2]
[368699851,1751308238907,-592.97,0.00020054,2]
[368699852,1751308238917,-460.0,0.00020054,2]
[368699853,1751308238926,-575.92,0.00020054,2]
[368699854,1751308238936,-460.0,0.00020054,2]
[368699855,1751308238946,-460.0,0.00020054,2]
[368699856,1751308238956,-460.0,0.00020055,2]
[368699857,1751308238966,-460.0,0.00020055,2]
[368699858,1751308238975,-463.8,0.00020055,2]
[368699859,1751308238985,-337.01,0.00020056,2]
[368699860,1751308238995,-614.24,0.00020056,2]
[368699861,1751308239005,-460.0,0.00020056,2]
[368699862,1751308239019,-460.0,0.00020056,2]
[368699863,1751308239031,-460.0,0.00020056,2]
[368699864,1751308239043,-534.24,0.00020056,2]
[368699865,1751308239055,-460.0,0.00020056,2]
[368699866,1751308239065,-460.0,0.00020057,2]
[368699867,1751308239075,-460.0,0.00020057,2]
[368699868,1751308239085,-1152.8508023,0.00020072,2]
[368699869,1751308239095,-171.363377,0.00020187,2]
[368699870,1751308239107,-1152.8508023,0.00020245,2]
[368699871,1751308239117,-460.0,0.00020269,2]
[368699872,1751308239126,-587.77,0.00020269,2]
[368699873,1751308239137,-230.31346914,0.00020313,2]
[368699874,1751308239147,-837.16779106,0.00020313,2]
[368699875,1751308239156,-213.84631524,0.00020313,2]
[368699876,1751308239166,-214.99848635,0.00020313,2]
[368699877,1751308239176,-160.0,0.00020313,2]
[368699878,1751308239185,-847.41730813,0.00020313,2]
[368699879,1751308239196,-160.0,0.00020313,2]
[368699880,1751308239206,-160.0,0.00020315,2]
[368699881,1751308239217,-460.0,0.00020326,2]
[368699882,1751308239227,-460.0,0.00020327,2]
[368699883,1751308239238,-460.0,0.00020327,2]
[368699884,1751308239247,-486.69,0.00020327,2]
[368699885,1751308239258,-172.85,0.00020327,2]
[368699886,1751308239268,-460.0,0.00020328,2]
[368699887,1751308239280,-460.0,0.00020328,2]
[368699888,1751308239290,-460.0,0.00020328,2]
[368699889,1751308239301,-460.0,0.00020329,2]
[368699890,1751308239312,-460.0,0.00020329,2]
[368699891,1751308239321,-500.0,0.0002033,2]
[368699892,1751308239331,-614.24,0.0002033,2]
[368699893,1751308239341,-460.0,0.0002033,2]
[368699894,1751308239350,-460.0,0.0002033,2]
[368699895,1751308239360,-460.0,0.0002033,2]
[368699896,1751308239369,-534.24,0.0002033,2]
[368699897,1751308239378,-460.0,0.0002033,2]
[368699898,1751308239388,-322.17683741,0.00020331,2]
[368699899,1751308239398,-460.0,0.00020331,2]
[368699900,1751308239408,-184.94,0.00020398,3]
[368699901,1751308239419,-554.87,0.00020398,3]
[368699902,1751308239430,-429.46904904,0.00020402,2]
[368699903,1751308239439,-11300.11963948,0.00020408,2]
[368699904,1751308239449,-1152.8508023,0.00020417,3]
[368699905,1751308239459,-176.303,0.00020477,2]
[368699906,1751308239468,-358.58,0.00020493,3]
[368699907,1751308239479,-324.22,0.00020493,3]
[368699908,1751308239488,-707.42,0.00020493,3]
[368699909,1751308239498,-500.0,0.00020501,2]
[368699910,1751308239507,-500.0,0.00020501,2]
[368699911,1751308239520,-500.0,0.00020502,2]
[368699912,1751308239531,-500.0,0.00020502,2]
[368699913,1751308239540,-500.0,0.00020502,2]
[368699914,1751308239551,-500.0,0.00020502,2]
[368699915,1751308239563,-500.0,0.00020502,2]
[368699916,1751308239574,-500.0,0.00020502,2]
[368699917,1751308239584,-500.0,0.00020502,2]
[368699918,1751308239597,-500.0,0.00020502,2]
[368699919,1751308239606,-500.0,0.00020502,2]
[368699920,1751308239615,-500.0,0.00020502,2]
[368699921,1751308239625,-500.0,0.00020502,2]
[368699922,1751308239635,-647.63,0.00020502,2]
[368699923,1751308239647,-363.84156407,0.00020502,2]
[368699924,1751308239657,-1496.81139147,0.00020502,2]
[368699925,1751308239667,-500.0,0.00020502,2]
[368699926,1751308239677,-1496.81139147,0.00020502,2]
[368699927,1751308239689,-1496.81139147,0.00020502,2]
[368699928,1751308239699,-552.31848027,0.00020502,2]
[368699929,1751308239708,-500.0,0.00020502,2]
[368699930,1751308239718,-1496.81139147,0.00020502,2]
[368699931,1751308239728,-1496.81139147,0.00020502,2]
[368699932,1751308239738,-1496.81139147,0.00020502,2]
[368699933,1751308239747,-500.0,0.00020502,2]
[368699934,1751308239758,-1496.81139147,0.00020502,2]
[368699935,1751308239769,-500.0,0.00020502,2]
[368699936,1751308239779,-1496.81139147,0.00020502,2]
[368699937,1751308239790,-1496.81139147,0.00020502,2]
[368699938,1751308239799,-500.0,0.00020502,2]
[368699939,1751308239809,-1496.81139147,0.00020502,2]
[368699940,1751308239818,-1496.81139147,0.00020502,2]
[368699941,1751308239828,-1496.81139147,0.00020502,2]
[368699942,1751308239838,-500.0,0.00020502,2]
[368699943,1751308239848,-1496.81139147,0.00020502,2]
[368699944,1751308239858,-1496.81139147,0.00020502,2]
[368699945,1751308239868,-1496.81139147,0.00020502,2]
[368699946,1751308239878,-1496.81139147,0.00020502,2]
[368699947,1751308239887,-1496.81139147,0.00020502,2]
[368699948,1751308239897,-1496.81139147,0.00020502,2]
[368699949,1751308239907,-1496.81139147,0.00020502,2]
[368699951,1751308239917,-1515.52153388,0.00020502,2]
[368699953,1751308239927,-1515.52153388,0.00020502,2]
[368699955,1751308239937,-1515.52153388,0.00020502,2]
[368699957,1751308239947,-1515.52153388,0.00020502,2]
[368699959,1751308239957,-1515.52153388,0.00020502,2]
[368699960,1751308239967,-1515.52153388,0.00020502,2]
[368699961,1751308239977,-1515.52153388,0.00020502,2]
[368699962,1751308239987,-370000.0,0.00020503,2]
[368699963,1751308239997,-1000.0,0.00020508,2]
[368699964,1751308240007,-460.0,0.00020543,2]
[368699965,1751308240017,-500.0,0.00020547,14]
[368699966,1751308240027,-460.0,0.00020562,2]
[368699967,1751308240036,-460.0,0.00020562,2]
[368699968,1751308240047,-460.0,0.00020562,2]
[368699969,1751308240056,-460.0,0.00020562,2]
[368699970,1751308240066,-407.86819657,0.00020562,2]
[368699971,1751308240076,-460.0,0.00020562,2]
[368699972,1751308240088,-460.0,0.00020562,2]
[368699973,1751308240099,-570.11,0.00020562,2]
[368699974,1751308240108,-510.22,0.00020562,2]
[368699975,1751308240118,-460.0,0.00020562,2]
[368699976,1751308240128,-460.0,0.00020562,2]
[368699977,1751308240137,-500.0,0.00020573,2]
[368699978,1751308240148,-395.5265441,0.00020573,2]
[368699979,1751308240158,-396.46133684,0.00020573,2]
[368699980,1751308240167,-1152.8508023,0.0002059,3]
[368699981,1751308240177,-460.0,0.000206,2]
[368699982,1751308240188,-460.0,0.00020601,2]
[368699984,1751308240197,-460.0,0.00020601,2]
[368699985,1751308240207,-486.69,0.00020601,2]
[368699986,1751308240217,-460.0,0.00020602,2]
[368699987,1751308240227,-460.0,0.00020602,2]
[368699988,1751308240448,-460.0,0.00020602,2]
[368699989,1751308240458,-460.0,0.00020603,2]
[368699990,1751308240469,-460.0,0.00020603,2]
[368699991,1751308240479,-614.24,0.00020604,2]
[368699992,1751308240488,-460.0,0.00020604,2]
[368699993,1751308240499,-460.0,0.00020604,2]
[368699994,1751308240508,-460.0,0.00020604,2]
[368699995,1751308240522,-534.24,0.00020604,2]
[368699996,1751308240532,-460.0,0.00020604,2]
[368699997,1751308240542,-460.0,0.00020605,2]
[368699998,1751308240552,-1838.78,0.000207,2]
[368699999,1751308240688,-354.0,0.00020734,2]
[368700000,1751308240720,-1152.8508023,0.00020762,3]
[368700001,1751308240730,-429.469049,0.00020777,2]
[368700002,1751308240740,-420.0,0.00020801,2]
[368700003,1751308240750,-380.37494551,0.00020817,2]
[368700004,1751308240760,-460.0,0.00020836,2]
[368700005,1751308240770,-510.22,0.00020836,2]
[368700006,1751308240779,-460.0,0.00020836,2]
[368700007,1751308240789,-460.0,0.00020836,2]
[368700008,1751308240799,-460.0,0.00020874,2]
[368700009,1751308240808,-460.0,0.00020875,2]
[368700010,1751308240819,-460.0,0.00020875,2]
[368700011,1751308240828,-486.69,0.00020875,2]
[368700012,1751308240838,-460.0,0.00020876,2]
[368700013,1751308240848,-511.23878253,0.00020876,2]
[368700014,1751308240857,-460.0,0.00020876,2]
[368700015,1751308240868,-460.0,0.00020877,2]
[368700016,1751308240879,-586.32,0.00020877,2]
[368700017,1751308240889,-614.24,0.00020878,2]
[368700018,1751308240899,-290.44,0.00020878,2]
[368700019,1751308240909,-460.0,0.00020878,2]
[368700020,1751308240920,-460.0,0.00020878,2]
[368700021,1751308240929,-534.24,0.00020878,2]
[368700022,1751308240939,-460.0,0.00020878,2]
[368700023,1751308240949,-460.0,0.00020879,2]
[368700024,1751308240959,-1152.8508023,0.00020934,4]
[368700025,1751308240969,-354.0,0.00020941,2]
[368700026,1751308240978,-354.0,0.00021024,2]
[368700027,1751308240988,-354.0,0.00021054,2]
[368700028,1751308240997,-1500.0,0.00021056,2]
[368700029,1751308241006,-238.0,0.00021102,2]
[368700030,1751308241017,-1152.8508023,0.00021107,4]
[368700031,1751308241026,-510.22,0.0002111,2]
[368700032,1751308241036,-460.0,0.0002111,2]
[368700033,1751308241046,-847.41730813,0.00021143,10]
[368700034,1751308241055,-460.0,0.00021149,2]
[368700035,1751308241066,-460.0,0.00021149,2]
[368700036,1751308241075,-486.69,0.00021149,2]
[368700037,1751308241084,-460.0,0.0002115,2]
[368700038,1751308241094,-460.0,0.0002115,2]
[368700039,1751308241104,-429.469049,0.00021151,2]
[368700040,1751308241114,-460.0,0.00021151,2]
[368700041,1751308241123,-614.24,0.00021152,2]
[368700042,1751308241132,-460.0,0.00021152,2]
[368700043,1751308241141,-460.0,0.00021152,2]
[368700044,1751308241150,-534.24,0.00021152,2]
[368700045,1751308241160,-460.0,0.00021152,2]
[368700046,1751308241169,-460.0,0.00021153,2]
[368700047,1751308241179,-238.0,0.00021174,2]
[368700048,1751308241188,-200.0,0.00021205,2]
[368700049,1751308241198,-238.0,0.00021237,2]
[368700050,1751308241207,-238.0,0.00021275,2]
[368700051,1751308241217,-1152.8508023,0.00021279,5]
[368700052,1751308241230,-354.0,0.0002129,2]
[368700053,1751308241240,-238.0,0.00021342,2]
[368700054,1751308241250,-510.22,0.00021384,2]
[368700055,1751308241259,-460.0,0.00021384,2]
[368700056,1751308241269,-460.0,0.00021423,2]
[368700057,1751308241278,-460.0,0.00021423,2]
[368700058,1751308241287,-486.69,0.00021423,2]
[368700059,1751308241297,-460.0,0.00021424,2]
[368700060,1751308241307,-460.0,0.00021424,2]
[368700061,1751308241316,-460.0,0.00021425,2]
[368700062,1751308241325,-614.24,0.00021426,2]
[368700063,1751308241335,-460.0,0.00021426,2]
[368700064,1751308241344,-460.0,0.00021426,2]
[368700065,1751308241357,-534.24,0.00021426,2]
[368700066,1751308241366,-460.0,0.00021426,2]
[368700067,1751308241375,-460.0,0.00021427,2]
[368700068,1751308241385,-1152.8508023,0.00021452,5]
[368700069,1751308241394,-238.0,0.00021477,2]
[368700070,1751308241403,-429.469049,0.00021526,2]
[368700071,1751308241413,-238.0,0.00021533,2]
[368700072,1751308241422,-394.47562695,0.00021604,2]
[368700073,1751308241431,-1152.8508023,0.00021624,5]
[368700074,1751308241440,-151.0,0.00021644,2]
[368700075,1751308241449,-690.642,0.00021644,2]
[368700076,1751308241459,-500.0,0.00021644,2]
[368700077,1751308241469,-500.0,0.00021644,2]
[368700078,1751308241478,-500.0,0.00021644,2]
[368700079,1751308241488,-500.0,0.00021644,2]
[368700080,1751308241497,-500.0,0.00021644,2]
[368700081,1751308241507,-500.0,0.00021644,2]
[368700082,1751308241520,-500.0,0.00021644,2]
[368700083,1751308241530,-500.0,0.00021644,2]
[368700084,1751308241539,-465.60752438,0.00021644,2]
[368700085,1751308241549,-500.0,0.00021644,2]
[368700086,1751308241560,-500.0,0.00021644,2]
[368700087,1751308241569,-500.0,0.00021644,2]
[368700088,1751308241578,-500.0,0.00021644,2]
[368700089,1751308241588,-500.0,0.00021644,2]
[368700090,1751308241598,-500.0,0.00021644,2]
[368700091,1751308241608,-500.0,0.00021644,2]
[368700092,1751308241617,-500.0,0.00021644,2]
[368700093,1751308241627,-25000.0,0.00021644,2]
[368700094,1751308241637,-500.0,0.00021644,2]
[368700095,1751308241646,-23221.87729931,0.00021644,2]
[368700096,1751308241656,-500.0,0.00021644,2]
[368700097,1751308241665,-500.0,0.00021644,2]
[368700098,1751308241674,-500.0,0.00021644,2]
[368700099,1751308241683,-5000.0,0.00021644,2]
[368700100,1751308241692,-931.80713625,0.00021644,2]
[368700101,1751308241702,-207.4,0.00021644,2]
[368700102,1751308241711,-510.22,0.00021658,2]
[368700103,1751308241720,-460.0,0.00021658,2]
[368700104,1751308241731,-460.0,0.00021697,2]
[368700105,1751308241740,-460.0,0.00021697,2]
[368700106,1751308241749,-486.69,0.00021697,2]
[368700107,1751308241759,-460.0,0.00021698,2]
[368700108,1751308241768,-460.0,0.00021698,2]
[368700109,1751308241778,-716.195754,0.00021699,2]
[368700110,1751308241787,-250.02,0.00021699,2]
[368700111,1751308241796,-614.24,0.000217,2]
[368700112,1751308241806,-460.0,0.000217,2]
[368700113,1751308241816,-260.46,0.000217,2]
[368700114,1751308241826,-534.24,0.000217,2]
[368700115,1751308241836,-151.0,0.000217,4]
[368700116,1751308241845,-460.0,0.000217,2]
[368700117,1751308241854,-460.0,0.00021701,2]
[368700118,1751308241864,-742.6949969,0.00021754,2]
[368700119,1751308241873,-369.88,0.00021768,3]
[368700120,1751308241883,-1152.8508023,0.00021797,6]
[368700121,1751308241892,-770.17471178,0.00021809,2]
[368700122,1751308241902,-238.0,0.00021846,2]
[368700123,1751308241911,-798.67117612,0.00021864,2]
[368700124,1751308241922,-429.469049,0.000219,2]
[368700125,1751308241931,-151.0,0.000219,3]
[368700126,1751308241941,-500.0,0.00021917,2]
[368700127,1751308241950,-500.0,0.00021917,2]
[368700128,1751308241960,-500.0,0.00021917,2]
[368700129,1751308241969,-500.0,0.00021917,2]
[368700130,1751308241977,-500.0,0.00021917,2]
[368700131,1751308241986,-500.0,0.00021917,2]
[368700132,1751308241995,-500.0,0.00021917,2]
[368700133,1751308242005,-500.0,0.00021917,2]
[368700134,1751308242014,-500.0,0.00021917,2]
[368700135,1751308242024,-500.0,0.00021917,2]
[368700136,1751308242034,-500.0,0.00021917,2]
[368700137,1751308242044,-500.0,0.00021917,2]
[368700138,1751308242054,-460.0,0.00021917,2]
[368700139,1751308242063,-460.0,0.00021917,2]
[368700140,1751308242073,-460.0,0.00021917,2]
[368700141,1751308242083,-502.03928275,0.00021917,2]
[368700142,1751308242092,-500.0,0.00021917,2]
[368700143,1751308242102,-400.0,0.00021918,7]
[368700144,1751308242112,-300.0,0.00021918,2]
[368700145,1751308242121,-828.22200964,0.00021919,2]
[368700146,1751308242131,-510.22,0.00021932,2]
[368700147,1751308242140,-460.0,0.00021932,2]
[368700148,1751308242149,-1152.8508023,0.00021969,6]
[368700149,1751308242159,-460.0,0.00021971,2]
[368700150,1751308242169,-460.0,0.00021971,2]
[368700151,1751308242179,-486.69,0.00021971,2]
[368700152,1751308242189,-460.0,0.00021972,2]
[368700153,1751308242198,-460.0,0.00021972,2]
[368700154,1751308242208,-153.31307263,0.00021973,2]
[368700155,1751308242218,-508.01447442,0.00021973,2]
[368700156,1751308242227,-404.82026296,0.00021973,2]
[368700157,1751308242236,-210.22072563,0.00021973,2]
[368700158,1751308242246,-500.0,0.00021973,2]
[368700159,1751308242256,-500.0,0.00021973,2]
[368700160,1751308242265,-500.0,0.00021973,2]
[368700161,1751308242274,-500.0,0.00021973,2]
[368700162,1751308242284,-500.0,0.00021973,2]
[368700163,1751308242295,-500.0,0.00021973,2]
[368700164,1751308242305,-500.0,0.00021973,2]
[368700165,1751308242316,-500.0,0.00021973,2]
[368700166,1751308242325,-160.04578804,0.00021973,2]
[368700167,1751308242334,-160.04797764,0.00021973,2]
[368700168,1751308242344,-500.0,0.00021973,2]
[368700169,1751308242353,-500.0,0.00021973,2]
[368700170,1751308242362,-198.29444739,0.00021973,2]
[368700171,1751308242373,-500.0,0.00021973,2]
[368700172,1751308242382,-306.90086317,0.00021973,2]
[368700173,1751308242391,-160.047979,0.00021973,2]
[368700174,1751308242401,-500.0,0.00021973,2]
[368700175,1751308242410,-160.0494529,0.00021973,2]
[368700176,1751308242420,-500.0,0.00021973,2]
[368700177,1751308242429,-160.04675528,0.00021973,2]
[368700178,1751308242438,-500.0,0.00021973,2]
[368700179,1751308242448,-160.04797764,0.00021973,2]
[368700180,1751308242458,-160.04797764,0.00021973,2]
[368700181,1751308242467,-500.0,0.00021973,2]
[368700182,1751308242476,-500.0,0.00021973,2]
[368700183,1751308242485,-500.0,0.00021973,2]
[368700184,1751308242495,-500.0,0.00021973,2]
[368700185,1751308242506,-500.0,0.00021973,2]
[368700186,1751308242516,-500.0,0.00021973,2]
[368700187,1751308242526,-500.0,0.00021973,2]
[368700188,1751308242537,-500.39951782,0.00021973,2]
[368700189,1751308242547,-500.0,0.00021973,2]
[368700190,1751308242558,-500.0,0.00021973,2]
[368700191,1751308242571,-600.0,0.00021973,2]
[368700192,1751308242582,-500.0,0.00021973,2]
[368700193,1751308242593,-500.0,0.00021973,2]
[368700194,1751308242605,-564.16242984,0.00021973,2]
[368700195,1751308242614,-500.0,0.00021973,2]
[368700196,1751308242623,-500.0,0.00021973,2]
[368700197,1751308242633,-500.0,0.00021973,2]
[368700198,1751308242643,-500.73388162,0.00021973,2]
[368700199,1751308242654,-500.0,0.00021973,2]
[368700200,1751308242665,-521.29076982,0.00021973,2]
[368700201,1751308242674,-500.0,0.00021973,2]
[368700203,1751308242685,-500.0,0.00021973,2]
[368700204,1751308242695,-500.0,0.00021973,2]
[368700205,1751308242704,-500.0,0.00021973,2]
[368700206,1751308242713,-500.0,0.00021973,2]
[368700207,1751308242723,-500.0,0.00021973,2]
[368700208,1751308242732,-500.0,0.00021973,2]
[368700209,1751308242741,-500.0,0.00021973,2]
[368700210,1751308242751,-500.0,0.00021973,2]